bitfinex/quotes_SOLUSD_20241205
["timestamp","ask_amount","ask_price","bid_price","bid_amount"]
[1733438200726,0.81230011,231.05,230.45,28.237374]
[1733438200926,0.81230011,231.05,230.75,217.75738786]
[1733438201223,0.81230011,231.05,230.62,217.75738786]
[1733438201408,2.90012305,230.81,230.62,217.75738786]
[1733438202732,0.81253162,231.03,230.62,217.75738786]
[1733438203134,4.749594,230.84,230.62,217.75738786]
[1733438203439,2.90012305,230.85,230.62,217.75738786]
[1733438203607,4.749594,230.84,230.62,217.75738786]
[1733438203815,4.749594,230.84,230.63,0.12549]
[1733438204113,0.6926689,231.06,230.63,0.12549]
[1733438204114,0.6926689,231.06,230.72,217.75738786]
[1733438204317,4.749594,230.91,230.72,217.75738786]
[1733438204520,2.90012305,230.85,230.72,217.75738786]
[1733438204724,4.749594,230.91,230.72,217.75738786]
[1733438204923,0.6926689,231.06,230.72,217.75738786]
[1733438205131,0.81217581,231.05,230.72,217.75738786]
[1733438205540,1.731601,230.91,230.72,217.75738786]
[1733438205725,0.6926689,231.06,230.72,217.75738786]
[1733438206038,1.731601,230.92,230.72,217.75738786]
[1733438206335,0.6926689,231.06,230.72,217.75738786]
[1733438206516,9e-05,230.83,230.72,217.75738786]
[1733438206711,0.98617359,231.05,230.72,217.75738786]
[1733438206712,19.94365916,230.88,230.72,217.75738786]
[1733438207439,1.86329195,230.94,230.72,217.75738786]
[1733438207743,1.95776605,230.94,230.73,0.12549]
[1733438207915,0.12549,230.93,230.73,0.12549]
[1733438208115,0.0944741,230.94,230.73,0.12549]
[1733438208743,0.0944741,230.94,230.45,21.91551878]
[1733438208744,0.0944741,230.94,230.9,217.75738786]
[1733438217141,0.0944741,230.94,230.9,181.74313196]
[1733438218428,0.0944741,230.94,230.91,0.12549]
[1733438218633,0.0944741,230.94,230.9,181.74313196]
[1733438219152,0.0944741,230.94,230.91,0.12549]
[1733438219346,0.0944741,230.94,230.9,181.74313196]
[1733438220047,0.0944741,230.94,230.92,0.12549]
[1733438220623,0.0944741,230.94,230.9,181.74313196]
[1733438220832,0.0944741,230.94,230.91,23.776884]
[1733438221147,0.0944741,230.94,230.9,181.74313196]
[1733438221353,0.0944741,230.94,230.92,0.12549]
[1733438222726,0.0944741,230.94,230.93,28.237374]
[1733438223535,0.05100838,230.94,230.93,28.237374]
[1733438224070,0.05100838,230.94,230.91,4.335]
[1733438226244,0.05100838,230.94,230.92,0.12549]
[1733438226823,0.05100838,230.94,230.38,135.3]
[1733438226824,0.05100838,230.94,230.93,77.39630679]
[1733438229541,0.05100838,230.94,230.93,80.38200179]
[1733438230460,0.05100838,230.94,230.93,76.04700179]
[1733438230959,0.81060767,231.46,230.97,23.902374]
[1733438231163,21.85844034,231.34,230.97,23.902374]
[1733438231331,21.85844034,231.34,212.59,0.9411157]
[1733438231332,0.81051074,231.33,231.01,72.93581679]
[1733438231674,0.17397582,231.28,231.02,4.98360939]
[1733438231851,0.17397582,231.28,231.1,72.93581679]
[1733438232058,0.17397582,231.28,231.02,4.98360939]
[1733438232059,2.04544448,231.37,231.11,0.64872718]
[1733438232229,0.12549,231.35,231.03,0.64854833]
[1733438232428,0.12549,231.35,231.02,4.335]
[1733438232650,0.12549,231.33,231.03,0.64893737]
[1733438232952,0.12549,231.31,231.02,72.93581679]
[1733438233156,0.12549,231.31,231.03,0.64863986]
[1733438233350,0.12549,231.31,231.02,72.93581679]
[1733438233351,0.12549,231.31,231.04,0.12549]
[1733438233545,0.17397582,231.37,231.06,0.12549]
[1733438233859,0.17397582,231.37,231.12,0.12549]
[1733438234156,2.885003,231.39,231.11,72.93581679]
[1733438234157,2.885003,231.39,231.14,0.12549]
[1733438234355,0.81036032,231.59,231.22,0.12549]
[1733438234660,0.81036032,231.59,230.88,20.0]
[1733438234661,0.17397582,231.58,231.3,72.93581679]
[1733438234845,0.81007116,231.57,231.31,0.30592003]
[1733438235161,0.17397582,231.56,231.31,0.30592003]
[1733438235343,0.81011278,231.55,231.31,0.30592003]
[1733438235543,0.81009995,231.64,231.31,0.30592003]
[1733438235848,0.17397582,231.54,231.3,72.93581679]
[1733438236049,0.12549,231.53,231.21,72.93581679]
[1733438236258,23.776884,231.52,231.22,0.30652136]
[1733438236443,23.776884,231.5,231.22,0.30652136]
[1733438236755,23.776884,231.48,231.22,0.30652136]
[1733438236945,0.81025736,231.47,231.23,0.12549]
[1733438237140,0.81019293,231.64,231.24,0.30616357]
[1733438237442,0.17397582,231.46,231.24,0.30616357]
[1733438237853,0.17397582,231.63,231.24,0.30616357]
[1733438238057,0.81037123,231.62,231.24,0.30616357]
[1733438238358,24.07634982,231.61,231.24,0.3063896]
[1733438238666,23.902374,231.59,231.24,0.3063896]
[1733438238966,23.902374,231.57,231.24,0.3063896]
[1733438239148,0.12549,231.55,231.24,0.3063896]
[1733438239458,0.12549,231.57,231.24,0.3063896]
[1733438239459,0.12549,231.52,231.24,0.3063896]
[1733438239676,0.81022107,231.52,231.3,72.93581679]
[1733438239851,0.80994456,231.64,231.31,0.30566684]
[1733438240040,0.17397582,231.61,231.31,0.30566684]
[1733438240244,0.81022112,231.6,231.23,0.12549]
[1733438240449,0.81022112,231.6,231.24,0.3062212]
[1733438240756,0.17397582,231.59,231.24,0.3062212]
[1733438240936,0.81053784,231.58,231.21,72.93581679]
[1733438241263,0.12549,231.56,231.21,72.93581679]
[1733438241442,23.902374,231.54,231.21,72.93581679]
[1733438241754,23.902374,231.52,231.12,72.93581679]
[1733438241958,23.902374,231.5,231.13,0.30696425]
[1733438242144,23.902374,231.48,231.13,0.30696425]
[1733438242455,23.902374,231.46,231.13,0.30696425]
[1733438242657,23.902374,231.44,231.13,0.30696425]
[1733438242845,23.902374,231.42,231.11,0.30735995]
[1733438243038,23.902374,231.4,231.12,0.12549]
[1733438243237,23.902374,231.38,231.13,0.30686541]
[1733438243544,0.12549,231.36,231.19,61.13261905]
[1733438243751,21.90680076,231.63,231.2,0.30674386]
[1733438243946,3.39085914,231.76,231.19,15.1728801]
[1733438244245,21.05599823,231.74,231.2,0.64827486]
[1733438244456,21.49257249,231.72,231.21,0.12549]
[1733438244750,21.46818272,231.7,231.22,0.64818066]
[1733438245051,21.49974404,231.68,231.22,0.64818066]
[1733438245265,21.26880257,231.66,231.22,0.64818066]
[1733438245557,0.04806572,231.73,231.22,0.64818066]
[1733438245558,21.5806048,231.64,231.22,0.64818066]
[1733438245754,21.37133267,231.62,231.22,0.64818066]
[1733438245955,21.30512127,231.6,231.22,0.64818066]
[1733438246156,21.21833403,231.58,231.22,0.64818066]
[1733438246357,21.45130419,231.56,231.22,0.64818066]
[1733438246656,21.97527865,231.54,231.22,0.64818066]
[1733438246959,21.00459259,231.46,231.22,0.64818066]
[1733438247148,21.25750691,231.43,231.22,0.64818066]
[1733438247350,23.902374,231.75,231.22,0.64818066]
[1733438247554,23.902374,231.73,231.22,0.64818066]
[1733438247734,220.8,231.91,231.22,0.64818066]
[1733438247735,23.902374,231.71,231.22,0.64818066]
[1733438247940,0.12549,231.68,231.22,0.64818066]
[1733438248162,23.902374,231.66,231.22,0.64818066]
[1733438248344,23.902374,231.64,231.22,0.64818066]
[1733438248549,23.902374,231.62,231.22,0.64818066]
[1733438248852,0.12549,231.6,231.28,61.13261905]
[1733438249054,5.77452336,231.8,231.29,0.64820342]
[1733438249270,0.81025428,231.8,231.29,0.64820342]
[1733438249449,5.12425428,231.8,231.29,0.64820342]
[1733438249840,5.12425428,231.8,231.28,61.13261905]
[1733438250272,0.12549,231.78,231.28,61.13261905]
[1733438250438,0.12549,231.76,231.28,61.13261905]
[1733438250640,0.12549,231.74,231.28,61.13261905]
[1733438250858,6.33940056,231.95,231.28,61.13261905]
[1733438250859,0.12549,231.72,231.28,61.13261905]
[1733438251059,23.902374,231.7,231.28,61.13261905]
[1733438251371,23.902374,231.68,231.18,61.13261905]
[1733438251662,23.902374,231.66,231.18,61.13261905]
[1733438251859,0.12549,231.63,231.18,61.13261905]
[1733438252039,23.902374,231.61,231.18,61.13261905]
[1733438252246,23.902374,231.59,231.19,61.13261905]
[1733438252442,23.902374,231.57,231.2,0.64845878]
[1733438252752,12.67880112,231.71,231.19,61.13261905]
[1733438252753,23.776884,231.55,231.19,61.13261905]
[1733438252950,23.776884,231.53,231.19,61.13261905]
[1733438253159,0.81055257,231.52,231.2,0.64847692]
[1733438253339,26.1,231.67,230.7,0.64847422]
[1733438253539,12.13359513,231.66,231.09,61.13261905]
[1733438253739,11.32304256,231.65,231.0,61.13261905]
[1733438253946,6.33940056,231.62,231.01,0.64885982]
[1733438254165,6.33940056,231.59,231.01,0.64885982]
[1733438254469,0.12549,231.56,231.01,0.64885982]
[1733438254649,0.12549,231.53,231.01,0.64885982]
[1733438254966,23.776884,231.49,231.0,61.13261905]
[1733438255266,23.902374,231.47,231.0,61.13261905]
[1733438255441,0.12549,231.44,231.0,61.13261905]
[1733438255772,0.12549,231.41,231.01,0.64907]
[1733438256064,0.12549,231.38,231.01,0.64907]
[1733438256235,0.12549,231.35,231.0,61.13261905]
[1733438256436,0.12549,231.32,231.0,61.13261905]
[1733438256665,0.12549,231.29,230.91,61.13261905]
[1733438256859,0.12549,231.26,230.91,61.13261905]
[1733438257060,23.902374,231.24,230.93,44.37291304]
[1733438257363,0.12549,231.21,230.94,0.64912433]
[1733438257536,23.776884,231.2,230.94,0.64912433]
[1733438257744,23.902374,231.18,230.94,0.64912433]
[1733438257956,0.12549,231.15,230.94,0.64912433]
[1733438258263,0.12549,231.13,230.94,0.64912433]
[1733438258472,0.81055257,231.39,230.95,0.12549]
[1733438258761,0.81055257,231.46,230.97,23.902374]
[1733438259064,0.81055257,231.46,231.02,44.37291304]
[1733438259269,0.81055257,231.46,231.04,23.776884]
[1733438259458,0.81055257,231.46,231.05,0.6487072]
[1733438259659,0.81055257,231.54,231.05,0.6487072]
[1733438259863,0.81055257,231.54,231.11,44.37291304]
[1733438260049,0.81055257,231.54,231.12,0.64857269]
[1733438260369,5.79595182,231.64,231.13,23.902374]
[1733438260664,0.81055257,231.64,231.15,23.902374]
[1733438260850,0.81055257,231.64,231.21,23.902374]
[1733438261049,0.81055257,231.64,231.23,0.12549]
[1733438261263,5.79559433,231.72,231.24,0.64815606]
[1733438261466,4.98539925,231.71,231.2,44.37291304]
[1733438261677,5.79581728,231.7,231.2,44.37291304]
[1733438261963,0.81041803,231.7,231.21,0.64833442]
[1733438262541,0.81036521,231.69,231.21,0.64833442]
[1733438262761,0.81036521,231.69,231.22,23.902374]
[1733438262967,0.81036521,231.69,231.23,0.64808369]
[1733438263149,0.81014215,231.77,231.24,23.776884]
[1733438263347,0.81014215,231.77,231.26,0.12549]
[1733438263546,5.7955414,231.77,231.27,0.64815238]
[1733438263847,0.81014215,231.77,231.27,0.64815238]
[1733438264058,0.81014032,231.76,231.27,0.64815238]
[1733438264258,0.81014032,231.76,231.29,44.37291304]
[1733438264451,23.776884,231.75,231.3,0.64808885]
[1733438264656,0.81013612,231.74,231.31,23.902374]
[1733438264966,0.81013612,231.74,231.33,23.902374]
[1733438265267,0.81013612,231.74,231.35,0.12549]
[1733438265450,0.81013612,231.74,231.38,44.37291304]
[1733438268061,0.80981248,231.83,231.4,8.0966]
[1733438268263,0.80981248,231.83,231.41,12.7047]
[1733438268453,0.80981248,231.83,231.43,12.7047]
[1733438268654,0.80981248,231.83,231.45,12.7047]
[1733438270580,0.80981248,231.83,231.47,12.7047]
[1733438271868,0.80964845,231.82,231.47,12.7047]
[1733438272044,7.14927027,231.91,231.47,12.7047]
[1733438272249,6.33940056,231.88,231.47,12.7047]
[1733438272558,7.14948572,231.87,231.47,12.7047]
[1733438273071,6.33940056,231.86,231.47,12.7047]
[1733438273276,0.81006576,231.85,231.47,12.7047]
[1733438273664,5.80182904,231.85,231.47,12.7047]
[1733438274365,0.81006576,231.85,231.47,12.7047]
[1733438275378,0.80992155,231.84,231.47,12.7047]
[1733438276268,0.80988207,231.83,231.47,12.7047]
[1733438276953,0.80988207,231.83,231.49,12.7047]
[1733438277274,0.80967301,231.82,231.49,12.7047]
[1733438277450,0.80971695,231.9,231.5,8.0966]
[1733438277652,0.80971695,231.9,231.51,12.7047]
[1733438278355,0.80970804,231.89,231.51,12.7047]
[1733438280171,0.80970804,231.89,231.52,8.0966]
[1733438280389,0.80972093,231.88,231.53,12.7047]
[1733438281179,0.80972093,231.88,231.53,42.7047]
[1733438281387,0.8098214,231.87,231.53,42.7047]
[1733438281702,0.8098214,231.87,231.54,12.7047]
[1733438282278,0.80987351,231.86,231.54,12.7047]
[1733438283364,9.30331343,231.91,231.54,12.7047]
[1733438283365,0.80982152,231.85,231.54,12.7047]
[1733438284492,0.81012704,231.84,231.54,12.7047]
[1733438284664,6.33940056,231.83,231.54,12.7047]
[1733438284858,0.8101329,231.82,231.54,3.1057]
[1733438285058,2.39,231.67,231.54,3.1057]
[1733438285259,0.8101967,231.66,231.54,3.1057]
[1733438285786,2.39,231.67,231.54,3.1057]
[1733438286389,21.80315858,231.66,231.52,8.0966]
[1733438286607,0.7699,231.31,231.08,3.24]
[1733438286892,4.3166,231.66,231.08,3.24]
[1733438287065,2.39,231.67,231.08,3.24]
[1733438287391,2.39,231.67,231.09,33.68584904]
[1733438287560,2.39,231.67,231.09,33.03701993]
[1733438287889,2.39,231.67,231.0,33.03701993]
[1733438288090,4.3166,231.66,231.01,0.64878983]
[1733438288293,4.3166,231.66,231.0,33.03701993]
[1733438288490,4.3166,231.66,231.01,0.64890636]
[1733438288789,4.3166,231.66,231.0,33.03701993]
[1733438288790,6.33940056,231.65,231.0,33.03701993]
[1733438289161,31.90390357,231.6,230.91,33.03701993]
[1733438289386,4.97901896,231.59,231.05,12.4942]
[1733438289575,4.97901896,231.59,231.06,8.2989]
[1733438289773,4.3181,231.58,231.06,8.2989]
[1733438290381,9.7158,231.58,231.06,8.2989]
[1733438290583,3.2386,231.58,231.07,13.14334256]
[1733438290886,3.2386,231.58,231.07,12.4942]
[1733438291695,21.36351518,231.55,231.07,12.4942]
[1733438291866,26.66178501,231.54,231.07,12.4942]
[1733438292068,6.33940056,231.51,231.07,12.4942]
[1733438292368,21.83400476,231.5,231.07,12.4942]
[1733438292567,26.89301518,231.49,231.07,12.4942]
[1733438292879,27.92332667,231.47,231.07,12.4942]
[1733438293077,26.30017319,231.46,231.07,12.4942]
[1733438293276,4.97901896,231.45,231.07,12.4942]
[1733438293479,26.30017319,231.46,231.07,12.4942]
[1733438293677,9.57990056,231.44,231.07,12.4942]
[1733438293883,21.0509593,231.43,231.07,12.4942]
[1733438294194,4.97901896,231.42,231.07,12.4942]
[1733438294770,21.86029096,231.4,231.07,12.4942]
[1733438294972,21.03465644,231.38,231.07,12.4942]
[1733438295172,21.64178886,231.36,231.07,12.4942]
[1733438295369,21.26803138,231.34,231.07,12.4942]
[1733438295597,4.97901896,231.33,231.07,12.4942]
[1733438295987,26.30003345,231.33,231.07,12.39776]
[1733438296180,4.93426712,231.32,231.07,12.39776]
[1733438296380,21.00340663,231.37,231.07,12.39776]
[1733438296587,4.9329482,231.36,231.07,12.39776]
[1733438296784,21.5643528,231.35,231.06,5.68549247]
[1733438297099,26.20097958,231.34,231.06,5.68549247]
[1733438297297,21.26803138,231.34,231.06,5.68549247]
[1733438297495,21.00340663,231.37,231.06,5.68549247]
[1733438297694,21.5643528,231.35,231.06,5.68549247]
[1733438297893,26.19051374,231.34,231.06,5.68549247]
[1733438298087,3.2414,231.38,231.06,5.68549247]
[1733438298304,6.33940056,231.44,231.06,5.68549247]
[1733438298305,24.2916593,231.43,231.06,5.68549247]
[1733438298512,21.09635374,231.41,231.06,5.68549247]
[1733438298798,21.97110788,231.48,231.06,5.68549247]
[1733438299136,21.32115423,231.46,231.06,5.68549247]
[1733438299282,21.02143723,231.44,231.06,5.68549247]
[1733438299600,3.2394,231.53,231.06,5.68549247]
[1733438299800,3.2394,231.53,231.07,12.7352]
[1733438299983,4.9174747,231.61,231.07,12.7352]
[1733438300182,3.2386,231.58,231.07,12.7352]
[1733438300384,21.05500753,231.57,231.07,12.7352]
[1733438300598,21.36351518,231.55,231.07,12.7352]
[1733438300798,4.9174747,231.54,231.07,12.7352]
[1733438301101,21.68276605,231.54,231.07,12.7352]
[1733438301298,21.77238738,231.51,231.07,12.7352]
[1733438301609,21.91399622,231.49,231.07,12.7352]
[1733438301810,4.9174747,231.48,231.07,12.7352]
[1733438302107,21.97110788,231.48,231.07,12.7352]
[1733438302411,9.7195,231.49,231.07,12.7352]
[1733438302412,21.32115423,231.46,231.07,12.7352]
[1733438302601,21.02143723,231.44,231.07,12.7352]
[1733438302785,21.83665041,231.42,231.07,12.7352]
[1733438302984,21.97110788,231.48,231.07,12.7352]
[1733438303181,21.32115423,231.46,231.07,12.7352]
[1733438303387,21.02143723,231.44,231.07,12.7352]
[1733438303596,21.83665041,231.42,231.07,12.7352]
[1733438303796,21.32115423,231.46,231.07,12.7352]
[1733438304114,21.86029096,231.4,231.07,12.7352]
[1733438304286,21.03465644,231.38,231.07,12.7352]
[1733438304487,21.64178886,231.36,231.07,12.7352]
[1733438304689,4.91311789,231.35,231.07,12.7352]
[1733438304882,21.26803138,231.34,231.07,12.7352]
[1733438305186,21.99867678,231.32,231.07,12.7352]
[1733438306107,21.5643528,231.35,231.07,12.7352]
[1733438306608,21.32101449,231.33,231.07,12.7352]
[1733438306807,21.5643528,231.35,230.77,35.14306353]
[1733438307012,21.32101449,231.33,230.77,35.14306353]
[1733438307222,21.72850208,231.31,230.77,35.14306353]
[1733438307505,21.5643528,231.35,230.77,35.14306353]
[1733438307687,21.32101449,231.33,230.77,35.14306353]
[1733438307888,4.89059395,231.32,230.77,35.14306353]
[1733438308104,21.71919685,231.29,230.77,35.14306353]
[1733438309087,3.2429,231.27,230.77,35.14306353]
[1733438309287,21.42149494,231.26,230.77,35.14306353]
[1733438309802,21.42149494,231.26,230.78,20.9026]
[1733438309997,21.42149494,231.26,230.79,12.7352]
[1733438310721,51.06179685,231.29,230.79,12.7352]
[1733438310922,21.3786293,231.27,230.79,12.7352]
[1733438311104,29.3426,231.29,230.79,12.7352]
[1733438311105,21.59608635,231.25,230.79,12.7352]
[1733438311422,21.86114217,231.24,230.79,12.7352]
[1733438311594,21.36320619,231.23,230.79,12.7352]
[1733438312023,21.73952863,231.21,230.79,12.7352]
[1733438312194,21.36320619,231.23,230.79,12.7352]
[1733438312791,21.73952863,231.21,230.79,12.7352]
[1733438313597,3.2439,231.2,230.79,12.7352]
[1733438313795,21.02963775,231.19,230.79,12.7352]
[1733438314519,33.97963775,231.19,230.79,12.7352]
[1733438314719,3.2442,231.18,230.79,12.7352]
[1733438314924,21.14011825,231.17,230.79,12.7352]
[1733438315094,34.55442306,231.15,230.79,12.7352]
[1733438315306,34.55442306,231.15,230.68,0.8200833]
[1733438315307,34.55442306,231.15,230.68,0.4775833]
[1733438315604,12.95,231.13,230.68,0.4775833]
[1733438315811,12.95,231.09,230.68,0.4775833]
[1733438316000,21.09342623,231.08,230.68,0.4775833]
[1733438316201,47.76728673,231.13,230.68,0.4775833]
[1733438316397,21.84796775,231.11,230.68,0.4775833]
[1733438316605,21.02202205,231.12,230.68,0.4775833]
[1733438316797,21.37264859,231.07,230.68,0.4775833]
[1733438317000,21.44794885,231.03,230.68,0.4775833]
[1733438317310,4.85523429,231.02,230.68,0.4775833]
[1733438317507,26.1,231.04,230.68,0.4775833]
[1733438317709,4.8471377,231.03,230.68,0.4775833]
[1733438317924,35.8393,231.02,230.68,0.4775833]
[1733438318126,4.8471377,231.01,230.68,0.4775833]
[1733438318326,30.9471377,231.01,230.68,0.4775833]
[1733438318627,26.1,230.99,230.68,0.4775833]
[1733438318922,26.1,230.97,230.68,0.4775833]
[1733438319312,9.7419,230.96,230.68,0.4775833]
[1733438319715,9.7419,230.96,230.4,35.11444181]
[1733438319916,16.2365,230.96,230.3,35.14306353]
[1733438320110,16.2365,230.96,230.31,0.65092872]
[1733438320299,16.2365,230.96,230.4,35.14306353]
[1733438320930,12.9892,230.96,230.4,35.14306353]
[1733438322105,30.0,230.73,230.4,35.14306353]
[1733438322809,30.0,230.73,230.41,21.1214]
[1733438323001,30.0,230.64,230.41,21.1214]
[1733438323230,0.0634,230.64,230.41,5.1209]
[1733438323529,3.2471,230.98,230.4,35.14306353]
[1733438323732,3.2471,230.98,230.41,0.65072438]
[1733438324098,30.0,230.64,230.41,0.65072438]
[1733438324299,21.02202205,231.12,230.41,0.65072438]
[1733438324300,3.2463,231.03,230.49,35.14306353]
[1733438324500,6.4911,231.09,230.5,5.0575]
[1733438324727,31.98161305,231.27,230.6,5.0575]
[1733438325026,12.755,231.15,230.61,23.776884]
[1733438325228,12.755,231.15,230.68,35.14306353]
[1733438325527,7.51,231.18,230.68,35.14306353]
[1733438325528,7.51,231.18,230.69,5.0622]
[1733438326408,12.755,231.25,230.69,5.0622]
[1733438326608,12.755,231.25,230.78,5.0622]
[1733438327031,7.5818,231.29,230.79,0.64964885]
[1733438327231,7.5818,231.29,230.86,35.14306353]
[1733438328739,3.2417,231.36,230.86,35.14306353]
[1733438330023,3.3515737,231.36,230.86,35.14306353]
[1733438331713,3.3515737,231.36,230.8,32.73354964]
[1733438332606,9.8349737,231.36,230.8,32.73354964]
[1733438332918,4.8842141,231.35,230.8,32.73354964]
[1733438333320,9.8349737,231.36,230.8,32.73354964]
[1733438333321,9.8349737,231.36,230.8,5.0622]
[1733438333522,16.3183737,231.36,230.8,5.0622]
[1733438333709,4.91393812,231.35,230.8,5.0622]
[1733438333909,13.12203812,231.34,230.8,5.0622]
[1733438334135,12.7257,231.32,230.8,5.0622]
[1733438334336,35.19294522,231.3,230.8,5.0622]
[1733438334542,83.12203812,231.29,230.8,5.0622]
[1733438334711,12.7257,231.27,230.8,5.0622]
[1733438334917,4.91393812,231.26,230.8,5.0622]
[1733438335130,4.91393812,231.25,230.8,5.0622]
[1733438335445,4.91393812,231.24,230.8,5.0622]
[1733438335615,8.2081,231.22,230.63,5.0622]
[1733438335942,52.83258334,231.21,230.63,5.0622]
[1733438336124,4.91393812,231.2,230.63,5.0622]
[1733438336437,11.30969401,231.19,230.63,5.0622]
[1733438336676,4.91393812,231.18,230.63,5.0622]
[1733438336849,8.15823812,231.17,230.63,5.0622]
[1733438337010,25.84773812,231.16,230.63,5.0622]
[1733438337216,4.99716898,231.15,230.63,5.0622]
[1733438337441,4.91393812,231.14,230.63,5.0622]
[1733438337738,4.91393812,231.13,230.63,5.0622]
[1733438337933,8.15893812,231.12,230.63,5.0622]
[1733438338241,4.91393812,231.11,230.63,5.0622]
[1733438338539,4.91393812,231.1,230.63,5.0622]
[1733438338845,9.7359,231.1,230.63,5.0622]
[1733438339050,14.64983812,231.1,230.63,5.0622]
[1733438339218,4.91393812,231.09,230.63,5.0622]
[1733438339421,3.2453,231.1,230.63,5.0622]
[1733438341232,14.64783812,231.15,230.63,32.73354964]
[1733438341436,4.91393812,231.14,230.63,5.0622]
[1733438341743,4.91393812,231.14,230.63,32.73354964]
[1733438341953,3.2447,231.15,230.63,32.73354964]
[1733438342116,8.17126164,231.15,230.64,0.65013424]
[1733438343738,4.92656164,231.15,230.64,0.65013424]
[1733438344525,3.2447,231.14,230.64,0.65013424]
[1733438344856,3.2447,231.14,230.63,32.73354964]
[1733438346356,5.02170401,231.13,230.63,32.73354964]
[1733438346652,11.33422904,231.12,230.63,32.73354964]
[1733438346943,4.93847315,231.11,230.63,32.73354964]
[1733438347125,4.93847315,231.1,230.63,32.73354964]
[1733438347327,4.93847315,231.12,230.64,0.65027583]
[1733438347551,4.93847315,231.12,230.65,5.0622]
[1733438347722,4.93847315,231.15,230.72,27.67134964]
[1733438349029,4.93847315,231.15,230.73,5.0622]
[1733438349943,0.08323086,231.14,230.73,5.0622]
[1733438350126,4.93847315,231.13,230.73,5.0622]
[1733438350333,26.1,231.12,230.73,5.0622]
[1733438350529,26.1,231.1,230.73,5.0622]
[1733438350724,26.1,231.08,230.73,5.0622]
[1733438351042,4.93847315,231.07,230.73,5.0622]
[1733438351848,31.03847315,231.08,230.73,5.0622]
[1733438352065,4.93847315,231.07,230.73,5.0622]
[1733438352352,47.12147037,231.04,230.73,5.0622]
[1733438352533,39.05,231.02,230.73,5.0622]
[1733438352733,26.1,231.0,230.73,5.0622]
[1733438353248,39.05,231.04,230.73,5.0622]
[1733438353457,6.39575589,231.06,230.73,5.0622]
[1733438353458,4.95598997,231.03,230.73,5.0622]
[1733438353627,4.95598997,231.06,230.73,5.0622]
[1733438354242,26.1,231.03,230.73,5.0622]
[1733438354545,31.05598997,231.02,230.73,5.0622]
[1733438354848,4.95598997,231.01,230.73,5.0622]
[1733438355433,4.95598997,231.02,230.73,5.0622]
[1733438356351,47.76728673,231.13,230.73,5.0622]
[1733438356524,4.3011877,231.12,230.73,5.0622]
[1733438357033,6.39575589,231.13,230.73,5.0622]
[1733438357230,32.49575589,231.13,230.73,5.0622]
[1733438357453,26.1,231.11,230.73,5.0622]
[1733438357746,26.1,231.09,230.73,5.0622]
[1733438358838,39.07,231.09,230.73,5.0622]
[1733438359451,26.1,231.09,230.73,5.0622]
[1733438359824,32.49575589,231.13,230.73,5.0622]
[1733438360047,12.97,231.08,230.73,5.0622]
[1733438360243,26.1,231.05,230.73,5.0622]
[1733438361330,0.08323086,231.04,230.73,5.0622]
[1733438361528,26.18323086,231.04,230.59,5.0622]
[1733438361730,26.1,231.0,230.59,5.0622]
[1733438361938,26.1,230.98,230.59,5.0622]
[1733438362235,26.1,230.96,230.59,5.0622]
[1733438363375,39.07,230.96,230.59,5.0622]
[1733438363657,39.07,230.93,230.59,5.0622]
[1733438363856,45.46575589,230.93,230.59,5.0622]
[1733438364034,0.08323086,230.92,230.59,5.0622]
[1733438364461,39.07,230.9,230.59,5.0622]
[1733438365055,39.07,230.88,230.58,0.4885824]
[1733438365263,19.36575589,230.88,230.58,0.4885824]
[1733438365433,0.05513657,230.86,230.58,0.4885824]
[1733438365766,12.97,230.84,230.58,0.4885824]
[1733438365943,12.97,230.82,230.58,0.4885824]
[1733438366145,0.08323086,230.81,230.58,0.4885824]
[1733438366340,5.14543086,230.81,230.58,0.4885824]
[1733438366537,5.14543086,230.81,230.37,5.0622]
[1733438366538,61.29294522,230.76,230.37,5.0622]
[1733438366843,61.29294522,230.76,229.79,0.5984561]
[1733438366844,3.2516,230.65,230.15,5.0622]
[1733438367035,8.19482492,230.65,230.15,5.0622]
[1733438367373,35.19294522,230.57,230.15,5.0622]
[1733438367543,4.94322492,230.56,230.15,5.0622]
[1733438367860,31.04322492,230.56,230.15,5.0622]
[1733438368062,26.1,230.54,230.15,5.0622]
[1733438368362,4.94322492,230.53,230.15,5.0622]
[1733438368549,3.2535,230.52,230.15,5.0622]
[1733438368750,13.0396,230.51,230.01,5.0622]
[1733438368946,4.94322492,230.5,230.01,5.0622]
[1733438369942,4.89367261,230.61,230.08,5.0622]